fUSD/lending_fUSD_20240708
["ID","MTS","AMOUNT","RATE_DAILY","PERIOD"]
[331516679,1720445929859,-500.0,0.00053972,120]
[331516680,1720445929962,-500.0,0.00053972,120]
[331516681,1720445930061,-505.36,0.00053972,120]
[331516682,1720445930161,-512.32,0.00053972,120]
[331516683,1720445930260,-500.0,0.00053972,120]
[331516684,1720445930361,-870.97,0.00053972,120]
[331516685,1720445930464,-500.0,0.00053972,120]
[331516686,1720445930569,-801.02,0.00053972,120]
[331516687,1720445930672,-1700.58,0.00053972,120]
[331516688,1720445930772,-571.2,0.00053972,120]
[331516689,1720445930873,-507.56,0.00053972,120]
[331516690,1720445930976,-500.0,0.00053972,120]
[331516691,1720445931079,-3501.0,0.00053972,120]
[331516692,1720445931178,-500.0,0.00053972,120]
[331516693,1720445931274,-958.56,0.00053972,120]
[331516694,1720445931368,-546.79163116,0.00053972,120]
[331516695,1720445931464,-500000.0,0.00054,44]
[331516696,1720445931559,-500000.0,0.00054,54]
[331516697,1720445931653,-25456.41421824,0.00054,120]
[331516698,1720445931745,-9000.0,0.00054,120]
[331516699,1720445931839,-48042.0,0.00054,120]
[331516700,1720445931937,-48042.0,0.00054,120]
[331516701,1720445932035,-48042.0,0.00054,120]
[331516702,1720445932130,-48042.0,0.00054,120]
[331516703,1720445932224,-250000.0,0.00054,120]
[331516704,1720445932320,-2000.0,0.00054,30]
[331516705,1720445932413,-2000.0,0.00054,30]
[331516706,1720445932507,-2000.0,0.00054,30]
[331516707,1720445932602,-2000.0,0.00054,30]
[331516708,1720445932697,-2000.0,0.00054,30]
[331516709,1720445932791,-270.553792,0.00054,120]
[331516710,1720445932887,-270.553787,0.00054,120]
[331516711,1720445932987,-2282.17,0.00054,120]
[331516712,1720445933086,-280.716139,0.00054,120]
[331516713,1720445933181,-280.71614,0.00054,120]
[331516714,1720445933286,-151.53425502,0.0005415,60]
[331516715,1720445933387,-150.05450301,0.00054167,60]
[331516716,1720445933491,-166.66666666,0.00054211,60]
[331516717,1720445933603,-575.09682209,0.00054246,120]
[331516718,1720445933708,-500.0,0.00054246,120]
[331516719,1720445933807,-291.9,0.00054246,120]
[331516720,1720445933906,-500.0,0.00054246,120]
[331516721,1720445934013,-422.473985,0.00054246,120]
[331516722,1720445934119,-422.473985,0.00054246,120]
[331516723,1720445934221,-1546.12,0.00054246,120]
[331516724,1720445934324,-500.0,0.00054246,120]
[331516725,1720445934678,-500.0,0.00054246,120]
[331516726,1720445934780,-500.0,0.00054246,120]
[331516727,1720445934883,-505.36,0.00054246,120]
[331516728,1720445934988,-512.32,0.00054246,120]
[331516729,1720445935089,-500.0,0.00054246,120]
[331516730,1720445935185,-870.97,0.00054246,120]
[331516731,1720445935286,-449.55,0.00054246,120]
[331516732,1720445935384,-801.02,0.00054246,120]
[331516733,1720445935484,-571.2,0.00054246,120]
[331516734,1720445935587,-507.56,0.00054246,120]
[331516735,1720445935687,-368.29,0.00054246,120]
[331516736,1720445935789,-3501.0,0.00054246,120]
[331516737,1720445935888,-500.0,0.00054246,120]
[331516738,1720445935990,-958.56,0.00054246,120]
[331516739,1720445936090,-156.43409628,0.00054252,60]
[331516740,1720445936188,-214.76863724,0.00054256,60]
[331516741,1720445936288,-2000.0,0.000545,30]
[331516742,1720445936390,-2000.0,0.000545,30]
[331516743,1720445936489,-2000.0,0.000545,30]
[331516744,1720445936587,-2000.0,0.000545,30]
[331516745,1720445936689,-2000.0,0.000545,30]
[331516746,1720445936803,-500.0,0.0005452,90]
[331516747,1720445936915,-500.0,0.0005452,120]
[331516748,1720445937018,-291.9,0.0005452,120]
[331516749,1720445937122,-500.0,0.0005452,120]
[331516750,1720445937229,-1546.12,0.0005452,120]
[331516751,1720445937336,-299.01388651,0.0005452,120]
[331516752,1720445937441,-498.53,0.0005452,120]
[331516753,1720445937543,-500.0,0.0005452,120]
[331516754,1720445937640,-505.36,0.0005452,120]
[331516755,1720445937738,-512.32,0.0005452,120]
[331516756,1720445937838,-500.0,0.0005452,120]
[331516757,1720445937943,-870.97,0.0005452,120]
[331516758,1720445938045,-801.02,0.0005452,120]
[331516759,1720445938146,-571.2,0.0005452,120]
[331516760,1720445938249,-507.56,0.0005452,120]
[331516761,1720445938360,-3501.0,0.0005452,120]
[331516762,1720445938465,-500.0,0.0005452,120]
[331516763,1720445938567,-958.56,0.0005452,120]
[331516764,1720445938670,-156.43409637,0.00054584,60]
[331516765,1720445938771,-1003.14,0.00054675,78]
[331516766,1720445938871,-154.154886,0.000547,79]
[331516767,1720445938973,-3454.263085,0.000547,99]
[331516768,1720445939076,-150.0,0.000547,40]
[331516769,1720445939176,-200.0,0.000547,33]
[331516770,1720445939278,-214.76863724,0.00054706,60]
[331516771,1720445939379,-214.76863724,0.0005473,60]
[331516772,1720445939484,-622.75,0.00054794,120]
[331516773,1720445939588,-622.75,0.00054794,120]
[331516774,1720445939686,-622.75,0.00054794,120]
[331516775,1720445939791,-622.75,0.00054794,120]
[331516776,1720445939891,-622.75,0.00054794,120]
[331516777,1720445939994,-622.75,0.00054794,120]
[331516778,1720445940102,-622.75,0.00054794,120]
[331516779,1720445940221,-622.75,0.00054794,120]
[331516780,1720445940337,-622.75,0.00054794,120]
[331516781,1720445940448,-622.75,0.00054794,120]
[331516782,1720445940556,-622.75,0.00054794,120]
[331516783,1720445940655,-622.75,0.00054794,120]
[331516784,1720445940751,-622.75,0.00054794,120]
[331516785,1720445940848,-622.75,0.00054794,120]
[331516786,1720445940951,-622.75,0.00054794,120]
[331516787,1720445941053,-622.75,0.00054794,120]
[331516788,1720445941155,-622.75,0.00054794,120]
[331516789,1720445941261,-622.75,0.00054794,120]
[331516790,1720445941372,-622.75,0.00054794,120]
[331516791,1720445941477,-622.75,0.00054794,120]
[331516792,1720445941576,-622.75,0.00054794,120]
[331516793,1720445941671,-860.724453,0.00054794,30]
[331516794,1720445941767,-500.0,0.00054794,120]
[331516795,1720445941860,-291.9,0.00054794,120]
[331516796,1720445941959,-500.0,0.00054794,120]
[331516797,1720445942096,-1546.12,0.00054794,120]
[331516798,1720445942191,-500.0,0.00054794,120]
[331516799,1720445942290,-505.36,0.00054794,120]
[331516800,1720445942387,-512.32,0.00054794,120]
[331516801,1720445942482,-164.0,0.00054794,120]
[331516802,1720445942581,-870.97,0.00054794,120]
[331516803,1720445942675,-801.02,0.00054794,120]
[331516804,1720445942771,-571.2,0.00054794,120]
[331516805,1720445942879,-507.56,0.00054794,120]
[331516806,1720445942985,-3501.0,0.00054794,120]
[331516807,1720445943090,-283.54,0.00054794,120]
[331516808,1720445943194,-958.56,0.00054794,120]
[331516809,1720445943323,-214.7686375,0.00054991,60]
[331516810,1720445943454,-50000.0,0.00055,45]
[331516811,1720445943580,-50000.0,0.00055,55]
[331516812,1720445943700,-48042.0,0.00055,120]
[331516813,1720445943826,-48042.0,0.00055,120]
[331516814,1720445943949,-48042.0,0.00055,120]
[331516815,1720445944068,-48042.0,0.00055,120]
[331516816,1720445944183,-48042.0,0.00055,120]
[331516817,1720445944300,-2000.0,0.00055,100]
[331516818,1720445944410,-200.0,0.00055,34]
[331516819,1720445944530,-200.0,0.00055,34]
[331516820,1720445944649,-200.0,0.00055,34]
[331516821,1720445944765,-200.0,0.00055,34]
[331516822,1720445944878,-2000.0,0.0005501,100]
[331516823,1720445944994,-2552.562634,0.0005502,100]
[331516824,1720445945102,-500.0,0.00055068,90]
[331516825,1720445945203,-301.1178644,0.00055068,120]
[331516826,1720445945311,-1801.6,0.00055068,120]
[331516827,1720445945410,-2861.76,0.00055068,120]
[331516828,1720445945519,-1122.87,0.00055068,120]
[331516829,1720445945626,-526.91,0.00055068,120]
[331516830,1720445945732,-686.39,0.00055068,120]
[331516831,1720445945844,-1136.27,0.00055068,120]
[331516832,1720445945948,-3164.35,0.00055068,120]
[331516833,1720445946058,-505.54,0.00055068,120]
[331516834,1720445946162,-1906.95,0.00055068,120]
[331516835,1720445946268,-1162.49,0.00055068,120]
[331516836,1720445946371,-1298.4,0.00055068,120]
[331516837,1720445946473,-1181.68,0.00055068,120]
[331516838,1720445946580,-2349.1,0.00055068,120]
[331516839,1720445946680,-811.45,0.00055068,120]
[331516840,1720445946781,-759.35,0.00055068,120]
[331516841,1720445946883,-2038.75,0.00055068,120]
[331516842,1720445946988,-1664.25,0.00055068,120]
[331516843,1720445947090,-858.68,0.00055068,120]
[331516844,1720445947196,-1349.79,0.00055068,120]
[331516845,1720445947303,-502.55,0.00055068,120]
[331516846,1720445947409,-3020.56,0.00055068,120]
[331516847,1720445947514,-1293.82,0.00055068,120]
[331516848,1720445947618,-1674.53,0.00055068,120]
[331516849,1720445947720,-1078.52,0.00055068,120]
[331516850,1720445947821,-625.62,0.00055068,120]
[331516851,1720445947924,-834.62,0.00055068,120]
[331516852,1720445948025,-500.0,0.00055068,120]
[331516853,1720445948130,-1406.2,0.00055068,120]
[331516854,1720445948236,-1390.62,0.00055068,120]
[331516855,1720445948343,-669.87,0.00055068,120]
[331516856,1720445948448,-500.0,0.00055068,120]
[331516857,1720445948554,-728.82,0.00055068,120]
[331516858,1720445948658,-2399.28,0.00055068,120]
[331516859,1720445948762,-1434.06,0.00055068,120]
[331516860,1720445948867,-510.34,0.00055068,120]
[331516861,1720445948969,-2007.19,0.00055068,120]
[331516862,1720445949075,-1253.66,0.00055068,120]
[331516863,1720445949184,-1628.65,0.00055068,120]
[331516864,1720445949291,-1435.39,0.00055068,120]
[331516865,1720445949402,-2683.83,0.00055068,120]
[331516866,1720445949511,-1226.3,0.00055068,120]
[331516867,1720445949618,-856.13,0.00055068,120]
[331516868,1720445949724,-1397.31,0.00055068,120]
[331516869,1720445949828,-602.51,0.00055068,120]
[331516870,1720445949934,-667.55,0.00055068,120]
[331516871,1720445950044,-1620.69,0.00055068,120]
[331516872,1720445950149,-812.96,0.00055068,120]
[331516873,1720445950256,-2144.73,0.00055068,120]
[331516874,1720445950365,-1545.37,0.00055068,120]
[331516875,1720445950471,-505.85,0.00055068,120]
[331516876,1720445950575,-3560.63,0.00055068,120]
[331516877,1720445950676,-801.42,0.00055068,120]
[331516878,1720445950779,-3858.43,0.00055068,120]
[331516879,1720445950882,-4446.26,0.00055068,120]
[331516880,1720445950985,-737.86,0.00055068,120]
[331516881,1720445951095,-564.21,0.00055068,120]
[331516882,1720445951197,-988.15,0.00055068,120]
[331516883,1720445951302,-6909.46,0.00055068,120]
[331516884,1720445951399,-6124.77,0.00055068,120]
[331516885,1720445951495,-7434.29,0.00055068,120]
[331516886,1720445951593,-1564.94,0.00055068,120]
[331516887,1720445951694,-3097.92,0.00055068,120]
[331516888,1720445951792,-4977.25,0.00055068,120]
[331516889,1720445951891,-2569.11,0.00055068,120]
[331516890,1720445951992,-817.49,0.00055068,120]
[331516891,1720445952091,-6557.78,0.00055068,120]
[331516892,1720445952186,-8047.98,0.00055068,120]
[331516893,1720445952284,-4890.76,0.00055068,120]
[331516894,1720445952388,-926.07,0.00055068,120]
[331516895,1720445952488,-634.86,0.00055068,120]
[331516896,1720445952587,-5071.97,0.00055068,120]
[331516897,1720445952684,-5197.47,0.00055068,120]
[331516898,1720445952781,-12824.58,0.00055068,120]
[331516899,1720445952881,-737.63,0.00055068,120]
[331516900,1720445952979,-979.51,0.00055068,120]
[331516901,1720445953076,-5000.69,0.00055068,120]
[331516902,1720445953289,-1089.79,0.00055068,120]
[331516903,1720445953399,-602.11,0.00055068,120]
[331516904,1720445953511,-3962.26,0.00055068,120]
[331516905,1720445953617,-816.01,0.00055068,120]
[331516906,1720445953723,-5967.11,0.00055068,120]
[331516907,1720445953831,-952.17,0.00055068,120]
[331516908,1720445953944,-3856.8,0.00055068,120]
[331516909,1720445954051,-1444.4,0.00055068,120]
[331516910,1720445954158,-4328.98,0.00055068,120]
[331516911,1720445954268,-1667.53,0.00055068,120]
[331516912,1720445954380,-602.68,0.00055068,120]
[331516913,1720445954494,-4918.52,0.00055068,120]
[331516914,1720445954615,-1665.81,0.00055068,120]
[331516915,1720445954760,-1343.01,0.00055068,120]
[331516916,1720445954874,-3737.99,0.00055068,120]
[331516917,1720445954979,-681.78,0.00055068,120]
[331516918,1720445955081,-1892.85,0.00055068,120]
[331516919,1720445955206,-2033.08,0.00055068,120]
[331516920,1720445955347,-2432.96,0.00055068,120]
[331516921,1720445955450,-8334.2,0.00055068,120]
[331516922,1720445955560,-2303.71,0.00055068,120]
[331516923,1720445955662,-7113.69,0.00055068,120]
[331516924,1720445955761,-2372.86,0.00055068,120]
[331516925,1720445955861,-6365.6,0.00055068,120]
[331516926,1720445955965,-3895.56,0.00055068,120]
[331516927,1720445956068,-4028.67,0.00055068,120]
[331516928,1720445956173,-2932.06,0.00055068,120]
[331516929,1720445956276,-9769.22,0.00055068,120]
[331516930,1720445956379,-3721.64,0.00055068,120]
[331516931,1720445956483,-579.46,0.00055068,120]
[331516932,1720445956588,-4737.12,0.00055068,120]
[331516933,1720445956690,-1491.25,0.00055068,120]
[331516934,1720445956789,-9789.62,0.00055068,120]
[331516935,1720445956893,-1519.45,0.00055068,120]
[331516936,1720445957000,-5134.91,0.00055068,120]
[331516937,1720445957106,-2497.28,0.00055068,120]
[331516938,1720445957214,-506.61,0.00055068,120]
[331516939,1720445957320,-18403.09,0.00055068,120]
[331516940,1720445957425,-552.8,0.00055068,120]
[331516941,1720445957528,-1198.7,0.00055068,120]
[331516942,1720445957632,-1667.87,0.00055068,120]
[331516943,1720445957735,-14120.27,0.00055068,120]
[331516944,1720445957839,-5150.8,0.00055068,120]
[331516945,1720445957945,-8496.48,0.00055068,120]
[331516946,1720445958053,-666.9,0.00055068,120]
[331516947,1720445958169,-77163.49,0.00055068,120]
[331516948,1720445958290,-1701.37,0.00055068,120]
[331516949,1720445958402,-1695.49,0.00055068,120]
[331516950,1720445958514,-3671.69,0.00055068,120]
[331516951,1720445958638,-43789.77,0.00055068,120]
[331516952,1720445958752,-5882.08,0.00055068,120]
[331516953,1720445958854,-744.56,0.00055068,120]
[331516954,1720445958958,-4253.18,0.00055068,120]
[331516955,1720445959066,-2648.44,0.00055068,120]
[331516956,1720445959169,-2191.17,0.00055068,120]
[331516957,1720445959278,-4023.3,0.00055068,120]
[331516958,1720445959392,-1885.58,0.00055068,120]
[331516959,1720445959504,-5732.02,0.00055068,120]
[331516960,1720445959616,-20208.54,0.00055068,120]
[331516961,1720445959734,-3285.94,0.00055068,120]
[331516962,1720445959852,-3467.68,0.00055068,120]
[331516963,1720445959968,-843.34,0.00055068,120]
[331516964,1720445960066,-4518.2,0.00055068,120]
[331516965,1720445960163,-579.73,0.00055068,120]
[331516966,1720445960266,-7921.19,0.00055068,120]
[331516967,1720445960362,-2995.09,0.00055068,120]
[331516968,1720445960457,-521.56,0.00055068,120]
[331516969,1720445960558,-4816.6,0.00055068,120]
[331516970,1720445960653,-5616.29,0.00055068,120]
[331516971,1720445960766,-4754.74,0.00055068,120]
[331516972,1720445960878,-2818.99,0.00055068,120]
[331516973,1720445960993,-2101.17,0.00055068,120]
[331516974,1720445961117,-7384.37,0.00055068,120]
[331516975,1720445961226,-500.0,0.00055068,120]
[331516976,1720445961342,-13611.45,0.00055068,120]
[331516977,1720445961450,-965.22,0.00055068,120]
[331516978,1720445961560,-547.56,0.00055068,120]
[331516979,1720445961662,-583.78,0.00055068,120]
[331516980,1720445961764,-3854.26,0.00055068,120]
[331516981,1720445961867,-500.0,0.00055068,120]
[331516982,1720445961972,-10162.8,0.00055068,120]
[331516983,1720445962074,-938.43,0.00055068,120]
[331516984,1720445962180,-1124.37,0.00055068,120]
[331516985,1720445962277,-4983.01,0.00055068,120]
[331516986,1720445962375,-5118.07,0.00055068,120]
[331516987,1720445962474,-2432.5,0.00055068,120]
[331516988,1720445962578,-5565.77,0.00055068,120]
[331516989,1720445962676,-2686.57,0.00055068,120]
[331516990,1720445962773,-500.0,0.00055068,120]
[331516991,1720445962864,-329.62777291,0.00055068,120]
[331516992,1720445963175,-524.96,0.00055068,120]
[331516993,1720445963274,-1454.12,0.00055068,120]
[331516994,1720445963381,-5036.27,0.00055068,120]
[331516995,1720445963489,-1067.33,0.00055068,120]
[331516996,1720445963593,-457.76324548,0.00055068,120]
[331516997,1720445963698,-1767.38,0.00055068,120]
[331516998,1720445963805,-5646.1,0.00055068,120]
[331516999,1720445963910,-2304.81,0.00055068,120]
[331517000,1720445964015,-4701.07,0.00055068,120]
[331517001,1720445964120,-9047.3,0.00055068,120]
[331517002,1720445964220,-4919.53,0.00055068,120]
[331517003,1720445964322,-1659.74,0.00055068,120]
[331517004,1720445964419,-1525.81,0.00055068,120]
[331517005,1720445964520,-2133.05,0.00055068,120]
[331517006,1720445964619,-7680.57,0.00055068,120]
[331517007,1720445964719,-4421.49,0.00055068,120]
[331517008,1720445964817,-1759.96,0.00055068,120]
[331517009,1720445964915,-3903.92,0.00055068,120]
[331517010,1720445965017,-500.0,0.00055068,120]
[331517011,1720445965114,-1631.9,0.00055068,120]
[331517012,1720445965213,-3833.49,0.00055068,120]
[331517013,1720445965313,-5951.51,0.00055068,120]
[331517014,1720445965413,-5146.59,0.00055068,120]
[331517015,1720445965514,-6347.68,0.00055068,120]
[331517016,1720445965613,-2176.54,0.00055068,120]
[331517017,1720445965717,-1088.69,0.00055068,120]
[331517018,1720445965815,-23579.31,0.00055068,120]
[331517019,1720445965912,-500.0,0.00055068,120]
[331517020,1720445966011,-3966.4,0.00055068,120]
[331517021,1720445966108,-2068.28,0.00055068,120]
[331517022,1720445966208,-2578.3,0.00055068,120]
[331517023,1720445966307,-3921.63,0.00055068,120]
[331517024,1720445966407,-58243.57,0.00055068,120]
[331517025,1720445966506,-508.44,0.00055068,120]
[331517026,1720445966605,-627.12,0.00055068,120]
[331517027,1720445966706,-24232.54,0.00055068,120]
[331517028,1720445966812,-552.36,0.00055068,120]
[331517029,1720445966917,-5320.57,0.00055068,120]
[331517030,1720445967021,-6752.46,0.00055068,120]
[331517031,1720445967123,-623.17,0.00055068,120]
[331517032,1720445967226,-695.92,0.00055068,120]
[331517033,1720445967328,-2080.87,0.00055068,120]
[331517034,1720445967430,-6849.11,0.00055068,120]
[331517035,1720445967526,-1687.12,0.00055068,120]
[331517036,1720445967622,-1101.67,0.00055068,120]
[331517037,1720445967719,-741.08,0.00055068,120]
[331517038,1720445967820,-6100.12,0.00055068,120]
[331517039,1720445967926,-1353.36,0.00055068,120]
[331517040,1720445968024,-6271.45,0.00055068,120]
[331517041,1720445968120,-2621.09,0.00055068,120]
[331517042,1720445968217,-2109.31,0.00055068,120]
[331517043,1720445968326,-12321.64,0.00055068,120]
[331517044,1720445968439,-538.98,0.00055068,120]
[331517045,1720445968550,-5668.6,0.00055068,120]
[331517046,1720445968660,-6141.18,0.00055068,120]
[331517047,1720445968766,-564.81,0.00055068,120]
[331517048,1720445968865,-639.8,0.00055068,120]
[331517049,1720445968976,-1783.66,0.00055068,120]
[331517050,1720445969079,-768.98,0.00055068,120]
[331517051,1720445969182,-1148.58,0.00055068,120]
[331517052,1720445969291,-1046.64,0.00055068,120]
[331517053,1720445969401,-500.0,0.00055068,120]
[331517054,1720445969509,-2383.64,0.00055068,120]
[331517055,1720445969625,-1380.83,0.00055068,120]
[331517056,1720445969735,-2726.39,0.00055068,120]
[331517057,1720445969844,-1348.55,0.00055068,120]
[331517058,1720445969949,-646.48,0.00055068,120]
[331517059,1720445970047,-5858.28,0.00055068,120]
[331517060,1720445970143,-3087.04,0.00055068,120]
[331517061,1720445970242,-768.16,0.00055068,120]
[331517062,1720445970343,-1098.42,0.00055068,120]
[331517063,1720445970441,-1151.32,0.00055068,120]
[331517064,1720445970586,-28264.79,0.00055068,120]
[331517065,1720445970683,-1188.45,0.00055068,120]
[331517066,1720445970780,-3804.3,0.00055068,120]
[331517067,1720445970879,-1074.63,0.00055068,120]
[331517068,1720445970978,-634.13,0.00055068,120]
[331517069,1720445971076,-972.69,0.00055068,120]
[331517070,1720445971179,-1971.31,0.00055068,120]
[331517071,1720445971284,-5641.11,0.00055068,120]
[331517072,1720445971380,-652.19,0.00055068,120]
[331517073,1720445971478,-433.95738006,0.00055068,120]
[331517074,1720445971580,-1216.89,0.00055068,120]
[331517075,1720445971680,-1765.23,0.00055068,120]
[331517076,1720445971781,-5055.86,0.00055068,120]
[331517077,1720445971881,-180.93308016,0.00055068,120]
[331517078,1720445971984,-711.2,0.00055068,120]
[331517079,1720445972084,-2570.12,0.00055068,120]
[331517080,1720445972182,-2420.66,0.00055068,120]
[331517081,1720445972283,-2264.16,0.00055068,120]
[331517082,1720445972377,-672.24,0.00055068,120]
[331517083,1720445972472,-3711.44,0.00055068,120]
[331517084,1720445972567,-3195.91,0.00055068,120]
[331517085,1720445972661,-2590.75,0.00055068,120]
[331517086,1720445972757,-822.01,0.00055068,120]
[331517087,1720445972855,-3178.37,0.00055068,120]
[331517088,1720445972952,-1501.03,0.00055068,120]
[331517089,1720445973048,-4652.58,0.00055068,120]
[331517090,1720445973145,-4176.17,0.00055068,120]
[331517091,1720445973245,-1039.34,0.00055068,120]
[331517092,1720445973349,-607.4,0.00055068,120]
[331517093,1720445973453,-517.37,0.00055068,120]
[331517094,1720445973559,-724.29,0.00055068,120]
[331517095,1720445973658,-1620.57,0.00055068,120]
[331517096,1720445973755,-1793.43,0.00055068,120]
[331517097,1720445973856,-12165.5,0.00055068,120]
[331517098,1720445973960,-976.96,0.00055068,120]
[331517099,1720445974066,-2857.78,0.00055068,120]
[331517100,1720445974165,-935.81,0.00055068,120]
[331517101,1720445974266,-794.19,0.00055068,120]
[331517102,1720445974365,-1096.71,0.00055068,120]
[331517103,1720445974470,-812.1,0.00055068,120]
[331517104,1720445974572,-2680.32,0.00055068,120]
[331517105,1720445974674,-1019.65,0.00055068,120]
[331517106,1720445974775,-7204.83,0.00055068,120]
[331517107,1720445974873,-1152.98,0.00055068,120]
[331517108,1720445974976,-2326.97,0.00055068,120]
[331517109,1720445975075,-2038.8,0.00055068,120]
[331517110,1720445975174,-1237.99,0.00055068,120]
[331517111,1720445975274,-671.15,0.00055068,120]
[331517112,1720445975372,-507.99,0.00055068,120]
[331517113,1720445975472,-943.16,0.00055068,120]
[331517114,1720445975572,-5931.18,0.00055068,120]
[331517115,1720445975668,-4626.82,0.00055068,120]
[331517116,1720445975767,-2327.97,0.00055068,120]
[331517117,1720445975861,-789.69,0.00055068,120]
[331517118,1720445975960,-1802.66,0.00055068,120]
[331517119,1720445976055,-2045.63,0.00055068,120]
[331517120,1720445976150,-2179.21,0.00055068,120]
[331517121,1720445976250,-679.68,0.00055068,120]
[331517122,1720445976349,-5851.04,0.00055068,120]
[331517123,1720445976453,-790.26,0.00055068,120]
[331517124,1720445976562,-3857.14,0.00055068,120]
[331517125,1720445976662,-918.0,0.00055068,120]
[331517126,1720445976759,-1071.27,0.00055068,120]
[331517127,1720445976854,-500.0,0.00055068,120]
[331517128,1720445976950,-971.7,0.00055068,120]
[331517129,1720445977052,-1080.21,0.00055068,120]
[331517130,1720445977154,-9335.91,0.00055068,120]
[331517131,1720445977258,-1237.8,0.00055068,120]
[331517132,1720445977366,-4880.04,0.00055068,120]
[331517133,1720445977469,-836.04,0.00055068,120]
[331517134,1720445977574,-2472.65,0.00055068,120]
[331517135,1720445977675,-1021.84,0.00055068,120]
[331517136,1720445977777,-550.11,0.00055068,120]
[331517137,1720445977872,-500.0,0.00055068,120]
[331517138,1720445977972,-1033.51,0.00055068,120]
[331517139,1720445978073,-820.16,0.00055068,120]
[331517140,1720445978176,-1695.51,0.00055068,120]
[331517141,1720445978279,-3132.94,0.00055068,120]
[331517142,1720445978385,-1913.66,0.00055068,120]
[331517143,1720445978494,-4157.78,0.00055068,120]
[331517144,1720445978604,-511.6,0.00055068,120]
[331517145,1720445978706,-652.08,0.00055068,120]
[331517146,1720445978805,-1698.07,0.00055068,120]
[331517147,1720445978907,-637.31,0.00055068,120]
[331517148,1720445979012,-572.94,0.00055068,120]
[331517149,1720445979121,-3335.79,0.00055068,120]
[331517150,1720445979235,-1910.14,0.00055068,120]
[331517151,1720445979353,-2108.8,0.00055068,120]
[331517152,1720445979467,-694.53,0.00055068,120]
[331517153,1720445979586,-1154.16,0.00055068,120]
[331517154,1720445979700,-1564.34,0.00055068,120]
[331517155,1720445979810,-3033.38,0.00055068,120]
[331517156,1720445979920,-2059.4,0.00055068,120]
[331517157,1720445980031,-989.58,0.00055068,120]
[331517158,1720445980133,-2399.84,0.00055068,120]
[331517159,1720445980235,-500.0,0.00055068,120]
[331517160,1720445980340,-1672.29,0.00055068,120]
[331517161,1720445980445,-1604.31,0.00055068,120]
[331517162,1720445980552,-500.0,0.00055068,120]
[331517163,1720445980654,-2417.35,0.00055068,120]
[331517164,1720445980756,-1416.43,0.00055068,120]
[331517165,1720445980857,-691.6,0.00055068,120]
[331517166,1720445980961,-972.54,0.00055068,120]
[331517167,1720445981074,-1198.2,0.00055068,120]
[331517168,1720445981277,-992.98,0.00055068,120]
[331517169,1720445981387,-542.92,0.00055068,120]
[331517170,1720445981498,-1035.8,0.00055068,120]
[331517171,1720445981606,-3821.85,0.00055068,120]
[331517172,1720445981713,-971.56,0.00055068,120]
[331517173,1720445981819,-587.73,0.00055068,120]
[331517174,1720445981921,-1317.09,0.00055068,120]
[331517175,1720445982027,-1389.08,0.00055068,120]
[331517176,1720445982128,-867.82,0.00055068,120]
[331517177,1720445982229,-1639.49,0.00055068,120]
[331517178,1720445982328,-615.39,0.00055068,120]